bitfinex-derivatives/quotes_ETHF0:USTF0_20250927
["timestamp","ask_amount","ask_price","bid_price","bid_amount"]
[1758947499929,1.34219,4026.0,4025.9,0.00300995]
[1758947500529,1.34219,4026.0,4025.9,0.41790995]
[1758947500834,1.34219,4026.0,4025.9,0.75280995]
[1758947504037,1.34219,4026.0,4025.9,0.41790995]
[1758947506340,1.34219,4026.0,4025.9,0.21230995]
[1758947506537,1.34219,4026.0,4025.9,0.00300995]
[1758947506738,1.34219,4026.0,4025.9,0.25300995]
[1758947506941,1.34219,4026.0,4025.9,0.00300995]
[1758947507235,1.34219,4026.0,4025.9,0.25300995]
[1758947507437,1.34219,4026.0,4025.9,0.46800995]
[1758947507634,1.34219,4026.0,4025.9,0.68350995]
[1758947507825,1.34219,4026.0,4025.9,0.46800995]
[1758947508229,1.34219,4026.0,4025.9,0.00300995]
[1758947508434,1.34219,4026.0,4025.9,0.25400995]
[1758947510338,1.34219,4026.0,4025.9,0.46900995]
[1758947510835,1.34219,4026.0,4025.9,0.25400995]
[1758947511230,1.34219,4026.0,4025.9,0.46900995]
[1758947512841,1.13649,4026.0,4025.9,1.00560995]
[1758947513041,1.34159,4026.0,4025.9,1.00560995]
[1758947513241,1.34159,4026.0,4025.9,0.68450995]
[1758947515536,0.8948,4026.0,4025.9,1.00560995]
[1758947515737,1.34159,4026.0,4025.9,1.00560995]
[1758947516340,0.8948,4026.0,4025.9,1.00560995]
[1758947517838,0.8948,4026.0,4025.9,0.68450995]
[1758947518345,1.41184951,4026.0,4025.9,0.46900995]
[1758947519848,1.41184951,4026.0,4025.9,0.25400995]
[1758947522946,1.41184951,4026.0,4025.9,0.00300995]
[1758947523154,1.41184951,4026.0,4025.9,0.25400995]
[1758947524551,1.41184951,4026.0,4025.9,0.00300995]
[1758947524843,1.41184951,4026.0,4025.9,0.25400995]
[1758947525846,1.41184951,4026.0,4025.9,0.00300995]
[1758947526048,6.41184951,4026.0,4025.9,0.00300995]
[1758947527852,1.41184951,4026.0,4025.9,0.22770995]
[1758947528053,1.41184951,4026.0,4025.9,0.44090995]
[1758947528252,1.41184951,4026.0,4025.9,0.77110995]
[1758947532155,1.41184951,4026.0,4025.9,0.44090995]
[1758947538464,1.85863951,4026.0,4025.9,0.44090995]
[1758947539165,1.85863951,4026.0,4025.9,0.88770995]
[1758947540467,1.85863951,4026.0,4025.9,0.44090995]
[1758947541264,1.85863951,4026.0,4025.9,0.88769995]
[1758947542969,1.41184951,4026.0,4025.9,2.62129425]
[1758947543168,0.84914951,4026.0,4025.9,2.62129425]
[1758947543871,0.51219471,4026.0,4025.9,2.62129425]
[1758947544175,0.3208,4026.3,4026.2,1.20855]
[1758947544365,0.3208,4026.3,4026.2,2.8574443]
[1758947544366,0.5397,4026.3,4026.2,2.8574443]
[1758947546374,0.7618,4026.3,4026.2,1.0118]
[1758947546677,0.7618,4026.3,4026.2,0.6771]
[1758947546973,0.8901,4026.0,4025.9,0.22270995]
[1758947547173,0.8901,4026.0,4025.9,0.47270995]
[1758947547382,0.8901,4026.0,4025.9,1.46159995]
[1758947547878,0.5397,4026.0,4025.9,1.46159995]
[1758947548976,0.668,4026.0,4025.9,1.46159995]
[1758947549178,0.8901,4026.0,4025.9,1.46159995]
[1758947549377,0.8901,4026.0,4025.9,0.66949995]
[1758947549574,0.8901,4026.0,4025.9,0.00300995]
[1758947549780,0.8901,4026.0,4025.9,0.25300995]
[1758947550675,0.8901,4026.0,4025.9,0.00300995]
[1758947550874,0.8901,4026.0,4025.9,0.25300995]
[1758947551277,0.8901,4026.0,4025.9,2.41370425]
[1758947551578,0.5397,4026.0,4025.9,2.41370425]
[1758947551972,0.668,4026.0,4025.9,2.41370425]
[1758947554985,0.8901,4026.0,4025.9,1.01480995]
[1758947555878,0.8901,4026.0,4025.9,0.00300995]
[1758947556078,0.8901,4026.0,4025.9,0.25300995]
[1758947557686,0.8901,4026.0,4025.9,0.47270995]
[1758947559288,0.8901,4026.0,4025.9,0.25300995]
[1758947562089,1.40800247,4026.0,4025.9,0.25300995]
[1758947562291,1.85477247,4026.0,4025.9,0.25300995]
[1758947565102,1.85477247,4026.0,4025.9,0.00300995]
[1758947565398,1.85477247,4026.0,4025.9,0.25300995]
[1758947573701,1.85477247,4026.0,4025.9,0.00300995]
[1758947573902,1.85477247,4026.0,4025.9,0.25300995]
[1758947576904,2.97753781,4026.0,4025.9,0.25300995]
[1758947580920,2.97753781,4026.0,4025.9,0.00300995]
[1758947581220,7.97753781,4026.0,4025.9,0.00300995]
[1758947582014,11.18533781,4026.0,4025.9,0.00300995]
[1758947584425,5.06257247,4026.0,4025.9,0.42340995]
[1758947585819,5.06257247,4026.0,4025.9,0.00300995]
[1758947590422,5.06257247,4026.0,4025.8,1.48758]
[1758947590623,1.28450247,4025.9,4025.8,1.48758]
[1758947591526,1.28450247,4025.9,4025.8,1.49060913]
[1758947597829,1.73129247,4025.9,4025.8,1.49060913]
[1758947598632,1.73129247,4025.9,4025.8,2.24390913]
[1758947599729,1.29449247,4025.9,4025.8,2.24390913]
[1758947599925,0.96469247,4025.9,4025.8,2.24390913]
[1758947600120,1.49179247,4025.9,4025.8,2.24390913]
[1758947600729,1.70639247,4025.9,4025.8,1.71410913]
[1758947608438,1.49179247,4025.9,4025.8,2.24390913]
[1758947608634,1.28149247,4025.9,4025.8,2.24390913]
[1758947609241,1.49179247,4025.9,4025.8,2.24390913]
[1758947611843,1.70639247,4025.9,4025.8,2.24390913]
[1758947618942,1.70639247,4025.9,4025.8,1.49060913]
[1758947619647,0.87177,4025.2,4025.1,3.4313]
[1758947619839,2.82923781,4025.2,4025.1,0.4735]
[1758947620544,2.82923781,4025.2,4025.1,1.0033]
[1758947620844,2.83152578,4025.2,4025.1,1.00646717]
[1758947623745,2.83152578,4025.2,4025.1,0.75646717]
[1758947623952,2.83152578,4025.2,4025.1,1.00646717]
[1758947624549,1.70876044,4025.2,4025.1,0.68116717]
[1758947625046,1.70876044,4025.2,4025.1,0.00316717]
[1758947636159,1.70876044,4025.2,4025.1,0.73856717]
[1758947637053,1.70876044,4025.2,4025.1,0.41476717]
[1758947639462,0.96706044,4025.2,4025.1,5.73856717]
[1758947639853,1.29146044,4025.2,4025.1,5.73856717]
[1758947640259,1.51076044,4025.2,4025.1,5.73856717]
[1758947641157,1.29146044,4025.2,4025.1,5.73856717]
[1758947641555,3.13233852,4025.2,4025.1,0.20916717]
[1758947641754,3.13233852,4025.2,4025.1,0.25316717]
[1758947643256,0.44692,4024.7,4024.6,3.2078]
[1758947643471,0.5437,4024.4,4024.3,0.7354]
[1758947643654,0.3244,4024.4,4024.3,0.9854]
[1758947643954,0.7655,4024.4,4024.3,0.4116]
[1758947644156,1.28669857,4024.4,4024.3,0.6616]
[1758947644361,1.28669857,4024.4,4024.3,0.66441152]
[1758947644763,1.06489857,4024.4,4024.3,0.98821152]
[1758947645158,1.73365857,4024.4,4024.3,0.41441152]
[1758947645366,1.73365857,4024.4,4024.3,0.66441152]
[1758947645557,1.28669857,4024.4,4024.3,0.66441152]
[1758947646458,1.28669857,4024.4,4024.3,0.98821152]
[1758947647562,0.3343,4024.8,4024.3,0.57661152]
[1758947647766,0.3343,4024.9,4024.8,0.4254]
[1758947647965,0.52083103,4024.9,4024.8,1.12231]
[1758947648166,1.27993103,4024.9,4024.8,0.4254]
[1758947648363,1.27993103,4024.9,4024.8,1.0063]
[1758947652971,0.85513103,4024.9,4024.8,1.0063]
[1758947653366,3.2078,4025.0,4024.9,1.1944]
[1758947653568,0.53748797,4025.2,4025.1,0.7475]
[1758947653776,1.0584742,4025.2,4025.1,0.7475]
[1758947654375,0.8482742,4025.2,4025.1,0.7475]
[1758947654574,0.32728797,4025.2,4025.1,0.7475]
[1758947655277,0.53748797,4025.2,4025.1,0.7475]
[1758947660673,0.32728797,4025.2,4025.1,0.7475]
[1758947661278,0.53748797,4025.2,4025.1,0.7475]
[1758947661570,0.53748797,4025.2,4025.1,0.9975]
[1758947662873,0.75568797,4025.2,4025.1,0.9975]
[1758947666081,0.53748797,4025.2,4025.1,0.9975]
[1758947673089,0.32728797,4025.2,4025.1,0.9975]
[1758947673282,0.00228797,4025.2,4025.1,2.39727808]
[1758947673995,0.32728797,4025.2,4025.1,2.39727808]
[1758947674588,0.53748797,4025.2,4025.1,0.9975]
[1758947674788,0.75568797,4025.2,4025.1,0.9975]
[1758947674990,0.00228797,4025.2,4025.1,5.9975]
[1758947675196,4.0877,4026.0,4025.9,0.65479]
[1758947675397,4.6079166,4026.0,4025.9,0.90479]
[1758947676290,4.61030682,4026.0,4025.9,0.90479]
[1758947683000,3.73040682,4026.0,4025.9,1.46629]
[1758947683198,0.34199022,4026.0,4025.9,1.46629]
[1758947683391,0.00239022,4026.0,4025.9,6.46629]
[1758947684098,0.3396,4026.4,4026.3,0.88705]
[1758947684302,3.5474,4026.5,4026.4,0.7764]
[1758947684504,4.62703945,4026.5,4026.4,0.2149]
[1758947685005,4.1064,4026.5,4026.4,0.7764]
[1758947685304,0.34260574,4026.5,4026.4,2.17617808]
[1758947685504,0.00300574,4026.5,4026.4,2.17617808]
[1758947685704,0.00300574,4026.5,4026.4,7.17617808]
[1758947686599,0.00300574,4026.5,4026.4,6.89828079]
[1758947689796,0.00300574,4026.5,4026.4,45.88628079]
[1758947690506,0.00300574,4026.5,4026.4,45.88528079]
[1758947691503,0.00300574,4026.5,4026.4,6.89828079]
[1758947691704,0.00300574,4026.5,4026.4,40.88528079]
[1758947691705,0.69680574,4026.5,4026.4,40.88528079]
[1758947692202,0.90160574,4026.5,4026.4,1.81218079]
[1758947693209,0.90160574,4026.5,4026.4,1.56218079]
[1758947693410,0.90160574,4026.5,4026.4,1.81218079]
[1758947695305,0.7701,4026.3,4026.2,0.44676]
[1758947695510,0.7701,4026.3,4026.2,0.69676]
[1758947697507,1.89198079,4026.3,4026.0,0.44677]
[1758947697803,0.7701,4026.1,4026.0,0.44677]
[1758947698007,0.7701,4026.1,4026.0,0.69677]
[1758947699611,0.7701,4026.1,4026.0,0.44677]
[1758947699805,0.7701,4026.1,4026.0,0.69677]
[1758947700311,0.7701,4026.1,4026.0,0.91167]
[1758947706112,0.7701,4026.1,4026.0,0.91168]
[1758947706313,0.7701,4026.1,4026.0,0.69678]
[1758947706510,3.33930574,4026.5,4025.7,3.5439]
[1758947706511,0.7701,4025.8,4025.7,3.2078]
[1758947706707,0.7701,4025.8,4025.7,3.4578]
[1758947707913,0.7701,4025.8,4025.5,1.12188079]
[1758947708209,0.7415,4025.7,4025.6,0.25]
[1758947708905,0.7415,4025.7,4025.6,0.4749]
[1758947709106,0.7415,4025.7,4025.6,0.92172]
[1758947711003,0.7415,4025.7,4025.2,3.2078]
[1758947711004,0.7415,4025.3,4025.2,3.2078]
[1758947711209,0.7415,4025.3,4025.2,0.25]
[1758947711818,0.7415,4025.3,4025.2,0.4749]
[1758947713210,0.892,4025.0,4024.9,1.78098079]
[1758947713404,0.892,4025.0,4024.9,2.03098079]
[1758947714519,0.892,4025.0,4024.9,2.25048079]
[1758947714714,0.23465968,4025.5,4025.4,1.21595]
[1758947714910,4.21738,4026.0,4025.9,0.2122]
[1758947715214,4.21738,4026.0,4025.9,0.7996]
[1758947716814,3.9745,4026.0,4025.9,2.14098079]
[1758947718519,3.9745,4026.0,4025.9,1.0191]
[1758947720021,3.9745,4026.0,4025.9,0.7691]
[1758947720321,4.0998,4026.0,4025.9,0.25]
[1758947720514,1.21349,4025.9,4025.8,0.44679]
[1758947720820,1.21349,4025.9,4025.8,0.69679]
[1758947721114,1.21349,4025.9,4025.8,1.03419]
[1758947721318,1.21349,4025.9,4025.8,1.24639]
[1758947721509,1.21349,4025.9,4025.8,0.25]
[1758947721821,1.21349,4025.9,4025.5,0.3374]
[1758947721822,0.7667,4025.6,4025.5,0.78423]
[1758947722021,0.7667,4025.6,4025.5,1.03423]
[1758947722319,0.7667,4025.6,4025.5,1.24643]
[1758947727624,0.7667,4025.6,4025.5,1.46593]
[1758947730620,0.7667,4025.6,4025.5,1.21593]
[1758947730926,0.7667,4025.6,4025.5,1.46593]
[1758947733524,0.7667,4025.4,4025.3,0.3374]
[1758947733719,5.28372252,4025.4,4025.3,0.7996]
[1758947733922,3.4307,4025.4,4025.3,1.0191]
[1758947734725,3.2078,4025.4,4025.3,1.0191]
[1758947735721,1.12188079,4027.4,4026.0,1.01398]
[1758947735722,3.7631,4026.1,4026.0,1.01398]
[1758947735921,4.28295267,4026.1,4026.0,1.60138]
[1758947736122,4.49435267,4026.1,4026.0,1.60138]
[1758947739821,4.16195267,4026.1,4026.0,1.60138]
[1758947740221,4.49435267,4026.1,4026.0,1.60138]
[1758947749140,4.49435267,4026.1,4026.0,1.46588]
[1758947752944,4.49435267,4026.1,4026.0,0.69678]
[1758947757137,4.49435267,4026.1,4026.0,0.44678]
[1758947757341,4.49435267,4026.1,4026.0,0.69678]
[1758947759942,4.49435267,4026.1,4026.0,1.01908]
[1758947760241,4.49435267,4026.1,4026.0,0.69678]
[1758947765446,4.94112267,4026.1,4026.0,0.69678]
[1758947766147,4.49435267,4026.1,4026.0,0.69678]
[1758947769756,4.49435267,4026.1,4026.0,1.01658]
[1758947770554,4.94112267,4026.1,4026.0,1.01658]
[1758947770759,4.94112267,4026.1,4026.0,0.69678]
[1758947771258,4.49435267,4026.1,4026.0,0.69678]
[1758947775553,3.72765267,4026.1,4026.0,2.97640139]
[1758947776258,3.94985267,4026.1,4026.0,2.97640139]
[1758947776559,0.51985267,4026.1,4026.0,7.97640139]
[1758947776758,0.74740574,4026.5,4026.4,1.19234]
[1758947776948,1.26759579,4026.5,4026.4,1.44234]
[1758947779547,0.52319579,4026.5,4026.4,2.84126139]
[1758947779752,0.00300574,4026.5,4026.4,2.84126139]
[1758947780254,0.00300574,4026.5,4026.4,6.04906139]
[1758947780758,0.00300574,4026.5,4026.4,11.24412761]
[1758947781660,3.7402,4027.2,4027.1,1.19226]
[1758947781856,4.25839916,4027.2,4027.1,1.44226]
[1758947782248,3.94819916,4027.2,4027.1,1.44226]
[1758947782649,3.72871917,4027.2,4027.1,2.84118139]
[1758947782856,3.21052001,4027.2,4027.1,2.84118139]
[1758947785863,3.43272001,4027.2,4027.1,1.44226]
[1758947786062,3.74292001,4027.2,4027.1,1.44226]
[1758947786265,3.95492001,4027.2,4027.1,1.44226]
[1758947794460,3.43272001,4027.2,4027.1,1.44226]
[1758947794965,3.74292001,4027.2,4027.1,1.44226]
[1758947795768,3.95492001,4027.2,4027.1,1.44226]
[1758947797676,3.64472001,4027.2,4027.1,2.84118139]
[1758947797875,3.43272001,4027.2,4027.1,2.84118139]
[1758947799675,3.21052001,4027.2,4027.1,2.84118139]
[1758947801577,3.43272001,4027.2,4027.1,2.84118139]
[1758947804878,3.21052001,4027.2,4027.1,2.84118139]
[1758947805175,0.46917,4028.1,4028.0,1.34146]
[1758947805375,0.46917,4028.1,4028.0,4.79926]
[1758947805777,0.46917,4028.1,4028.0,4.36256]
[1758947805972,0.4718423,4028.1,4028.0,4.36256]
[1758947806175,0.98957025,4028.1,4028.0,4.36538007]
[1758947806573,0.98957025,4028.1,4028.0,3.79032007]
[1758947806776,7.38849164,4028.1,4028.0,3.46062007]
[1758947806980,0.6645,4027.6,4027.5,3.2078]
[1758947807479,1.18248791,4027.6,4027.5,3.4578]
[1758947807979,1.18248791,4027.6,4027.5,3.4595513]
[1758947808479,6.18248791,4027.6,4027.5,3.2095513]
[1758947808685,7.30457577,4027.6,4027.5,3.4595513]
[1758947811885,7.30457577,4027.6,4027.5,0.2517513]
[1758947812286,7.30457577,4027.6,4027.5,0.0017513]
[1758947812492,7.30457577,4027.6,4027.5,0.2517513]
[1758947812876,7.30457577,4027.6,4026.8,2.45488284]
[1758947812877,0.44668,4026.9,4026.8,0.99199498]
[1758947813084,0.44671,4026.6,4026.5,0.4582]
[1758947813286,1.56879786,4026.6,4026.5,0.4582]
[1758947813483,2.08678577,4026.6,4026.5,0.1285]
[1758947813779,0.44676,4026.2,4026.1,0.3297]
[1758947813985,5.29463577,4026.2,4026.1,0.25402487]
[1758947814186,5.29463577,4026.2,4026.1,0.00302487]
[1758947814487,10.29463577,4026.2,4026.1,0.00302487]
[1758947817084,9.17254791,4026.2,4026.1,0.33272487]
[1758947817285,10.29463577,4026.2,4026.1,0.33272487]
[1758947818587,10.54563577,4026.2,4026.1,0.33272487]
[1758947820493,3.72578791,4026.2,4026.1,0.76942487]
[1758947820690,3.2078,4026.2,4026.1,0.76942487]
[1758947822289,3.2078,4026.2,4026.1,1.02042487]
[1758947828897,3.2078,4026.2,4026.1,0.80752487]
[1758947831700,3.2078,4026.2,4026.1,1.02442487]
[1758947832197,4.32988786,4026.2,4026.1,1.02442487]
[1758947836300,4.84806268,4026.2,4026.1,1.02442487]
[1758947841903,5.29482268,4026.2,4026.1,1.02442487]
[1758947844406,4.17273482,4026.2,4026.1,1.02442487]
[1758947845405,0.96493482,4026.2,4026.1,1.02442487]
[1758947852309,0.96493482,4026.2,4026.1,0.77342487]
[1758947852502,0.96493482,4026.2,4026.1,1.02342487]
[1758947865117,2.08702268,4026.2,4026.1,0.77342487]
[1758947865415,2.08702268,4026.2,4026.1,0.58272487]
[1758947865621,5.29482268,4026.2,4026.1,0.33272487]
[1758947868526,4.17273482,4026.2,4026.1,0.33272487]
[1758947869625,4.17273482,4026.2,4026.1,0.75712487]
[1758947871026,3.72597482,4026.2,4026.1,0.75712487]
[1758947871326,4.17273482,4026.2,4026.1,0.75712487]
[1758947875621,5.57187366,4026.2,4026.1,0.33272487]
[1758947877221,4.17273482,4026.2,4026.1,0.75712487]
[1758947890832,4.17273482,4026.2,4026.1,0.33272487]
[1758947891042,5.57187366,4026.2,4026.1,0.33272487]
[1758947891438,5.57187366,4026.2,4026.1,0.00302487]
[1758947892139,5.82187366,4026.2,4026.1,0.00302487]
[1758947894538,10.82187366,4026.2,4026.1,0.00302487]
[1758947896136,10.82187366,4026.2,4025.5,0.1285]
[1758947896137,0.44682,4025.6,4025.5,0.1285]
[1758947896338,0.96499482,4025.6,4025.5,0.1285]
[1758947896837,0.96499482,4025.6,4025.5,0.4686]
[1758947897044,0.96499482,4025.6,4025.5,0.47107288]
[1758947897640,1.84595884,4025.6,4025.5,0.47107288]
[1758947897940,2.36698027,4025.6,4025.5,0.47107288]
[1758947903540,2.61698027,4025.6,4025.5,0.47107288]
[1758947904050,2.61698027,4025.6,4025.5,0.13097288]
[1758947904243,2.61698027,4025.6,4025.5,0.47107288]
[1758947906546,7.61698027,4025.6,4025.5,0.47107288]
[1758947906744,2.61698027,4025.6,4025.5,0.47107288]
[1758947907252,1.21784143,4025.6,4025.5,0.68717288]
[1758947909258,4.42564143,4025.6,4025.5,0.68717288]
[1758947910161,5.82478027,4025.6,4025.5,0.68717288]
[1758947914465,5.82478027,4025.6,4025.5,0.90967288]
[1758947915266,5.82478027,4025.6,4025.5,0.47107288]
[1758947925763,4.42564143,4025.6,4025.5,0.47107288]
[1758947926067,5.82478027,4025.6,4025.5,0.47107288]
[1758947927372,4.42564143,4025.6,4025.5,0.88527288]
[1758947927873,4.17564143,4025.6,4025.5,0.88527288]
[1758947928063,4.42564143,4025.6,4025.5,0.88527288]
[1758947930570,4.42564143,4025.6,4025.5,0.47107288]
[1758947930571,5.5487176,4025.6,4025.5,0.47107288]
[1758947930873,5.02769617,4025.6,4025.5,0.47107288]
[1758947934772,5.54874385,4025.6,4025.5,0.47107288]
[1758947941586,0.44688,4025.1,4025.0,0.1285]
[1758947941880,0.44688,4025.1,4025.0,0.3357]
[1758947941881,4.42572768,4025.1,4025.0,0.3357]
[1758947942078,4.42572768,4025.1,4025.0,0.6747]
[1758947942278,4.42572768,4025.1,4024.4,3.2078]
[1758947942279,0.309,4024.5,4024.0,0.1283]
[1758947942482,0.67399,4024.1,4024.0,0.54477243]
[1758947942782,0.52104768,4024.1,4024.0,0.54477243]
[1758947944274,0.52104768,4024.1,4024.0,0.88377243]
[1758947947085,0.52104768,4024.1,4024.0,5.87577243]
[1758947947389,3.21065022,4024.5,4024.0,5.99176243]
[1758947947584,0.00285022,4024.5,4024.4,1.89297617]
[1758947947784,0.52276239,4024.5,4024.4,1.89297617]
[1758947948284,0.52276239,4024.5,4024.4,6.89297617]
[1758947958796,0.96971239,4024.5,4024.4,6.89297617]
[1758947965505,0.96971239,4024.5,4024.4,5.7699]
[1758947971713,0.96971239,4024.5,4024.4,6.0199]
[1758947979416,0.96971239,4024.5,4024.4,1.0199]
[1758947982419,0.52276239,4024.5,4024.4,1.0199]
[1758947982623,0.52276239,4024.5,4024.4,1.46686]
[1758947983016,0.52276239,4024.5,4024.4,1.0199]
[1758947983415,0.96971239,4024.5,4024.4,1.0199]
[1758947984715,0.96971239,4024.5,4024.4,1.46686]
[1758947985221,0.96971239,4024.5,4024.4,1.0199]
[1758947991923,1.73381239,4024.5,4024.4,1.0199]
[1758947993321,1.40871239,4024.5,4024.4,1.0199]
[1758947995822,1.73381239,4024.5,4024.4,1.0199]
[1758947998028,1.40871239,4024.5,4024.4,1.0199]
[1758948001531,1.73381239,4024.5,4024.4,1.0199]
[1758948001730,1.73381239,4024.5,4024.4,0.7699]
[1758948001933,1.73381239,4024.5,4024.4,1.0199]
[1758948002231,1.73381239,4024.5,4024.4,0.331]
[1758948002433,1.73381239,4024.5,4024.4,0.581]
[1758948003332,1.73381239,4024.5,4024.4,0.331]
[1758948003633,1.73381239,4024.5,4024.2,3.2078]
[1758948003634,1.21107,4024.3,4024.2,3.2078]
[1758948003831,1.73098217,4024.3,4024.2,3.4578]
[1758948006328,1.73098217,4024.3,4024.2,3.7703]
[1758948007328,1.73098217,4024.3,4024.2,3.5203]
[1758948007535,1.73098217,4024.3,4024.2,3.2078]
[1758948007732,1.73098217,4024.3,4024.2,0.25]
[1758948009322,0.88239,4024.1,4024.0,0.32967243]
[1758948009635,1.74110217,4024.1,4024.0,0.57967243]
[1758948011935,1.74110217,4024.1,4024.0,0.25227243]
[1758948014034,1.74110217,4024.1,4024.0,0.57467243]
[1758948014636,1.74110217,4024.1,4024.0,0.78617243]
[1758948015436,1.74110217,4024.1,4024.0,0.91397243]
[1758948019831,1.74110217,4024.1,4024.0,1.13127243]
[1758948026634,1.74110217,4024.1,4024.0,0.78617243]
[1758948027738,1.74110217,4024.1,4024.0,0.53617243]
[1758948031443,1.74110217,4024.1,4024.0,0.66397243]
[1758948044459,1.74110217,4024.1,4024.0,0.53617243]
[1758948047654,1.74110217,4024.1,4024.0,0.67127243]
[1758948053562,1.40230217,4024.1,4024.0,0.89297243]
[1758948054261,1.73440217,4024.1,4024.0,0.89297243]
[1758948056163,0.95531217,4024.1,4024.0,0.89297243]
[1758948056459,0.51991217,4024.1,4024.0,0.89297243]
[1758948057666,0.73991217,4024.1,4024.0,0.89297243]
[1758948061162,0.22,4024.1,4024.0,0.89297243]
[1758948061365,0.74114423,4024.1,4024.0,0.89297243]
[1758948061870,0.52114423,4024.1,4024.0,0.89297243]
[1758948063071,0.74114423,4024.1,4024.0,0.89297243]
[1758948063270,0.74114423,4024.1,4024.0,1.14297243]
[1758948063872,0.52114423,4024.1,4024.0,1.14297243]
[1758948065877,0.74114423,4024.1,4024.0,1.14297243]
[1758948069174,0.52114423,4024.1,4024.0,1.14297243]
[1758948069576,0.96813423,4024.1,4024.0,1.14297243]
[1758948070175,1.18693423,4024.1,4024.0,1.14297243]
[1758948076080,0.52114423,4024.1,4024.0,1.58997243]
[1758948076975,0.96813423,4024.1,4024.0,1.58997243]
[1758948077173,0.52114423,4024.1,4024.0,1.58997243]
[1758948077478,0.52114423,4024.1,4024.0,6.58997243]
[1758948078078,0.44697,4024.3,4024.2,0.7472]
[1758948078271,0.44697,4024.3,4024.2,2.12100369]
[1758948078469,0.96796569,4024.3,4024.2,2.12100369]
[1758948079285,2.86456938,4024.3,4024.2,0.7472]
[1758948079584,2.86456938,4024.3,4024.2,0.9972]
[1758948081991,1.74076569,4024.3,4024.2,0.9972]
[1758948082189,0.95599569,4024.3,4024.2,0.9972]
[1758948082888,0.52099569,4024.3,4024.2,0.9972]
[1758948083482,0.74609569,4024.3,4024.2,0.9972]
[1758948086787,1.29379569,4024.3,4024.2,0.7472]
[1758948086986,1.29379569,4024.3,4024.2,0.9972]
[1758948087190,1.29379569,4024.3,4024.2,0.5736]
[1758948087495,1.29379569,4024.3,4024.2,0.7813]
[1758948088889,1.29379569,4024.3,4024.0,0.32587243]
[1758948088890,0.435,4024.1,4024.0,0.32587243]
[1758948089194,1.29379569,4024.1,4024.0,0.57587243]
[1758948090095,1.29379569,4024.1,4024.0,0.78357243]
[1758948091393,1.29379569,4024.1,4024.0,0.91327243]
[1758948093089,1.29379569,4024.1,4024.0,1.12917243]
[1758948094997,1.29379569,4024.1,4024.0,0.78357243]
[1758948095393,1.74078569,4024.1,4024.0,0.91327243]
[1758948095697,1.29379569,4024.1,4024.0,0.91327243]
[1758948096197,1.29379569,4024.1,4024.0,1.12917243]
[1758948101113,0.95599569,4024.1,4024.0,1.12917243]
[1758948101404,0.74609569,4024.1,4024.0,1.12917243]
[1758948101604,0.52099569,4024.1,4024.0,1.12917243]
[1758948102201,0.74609569,4024.1,4024.0,1.12917243]
[1758948105108,0.52099569,4024.1,4024.0,2.25297612]
[1758948108700,0.44697,4024.3,4024.1,0.44699]
[1758948108902,0.44697,4024.3,4024.2,0.9814]
[1758948109296,0.96788742,4024.3,4024.2,0.9814]
[1758948110208,0.96788742,4024.3,4024.2,1.42838]
[1758948114811,0.52091742,4024.3,4024.2,1.42838]
[1758948120513,0.52091742,4024.3,4024.2,2.82840137]
[1758948120701,0.00285022,4024.5,4024.4,1.17836]
[1758948120900,0.00285022,4024.5,4024.4,4.63616]
[1758948121105,0.52374592,4024.5,4024.4,4.63616]
[1758948121304,0.00285022,4024.5,4024.4,4.63616]
[1758948122311,0.21155022,4024.5,4024.4,4.63616]
[1758948124615,0.21155022,4024.5,4024.4,4.1892]
[1758948124809,1.26571664,4024.5,4024.4,0.5268]
[1758948125006,1.26571664,4024.5,4024.4,0.7768]
[1758948125408,1.26571664,4024.5,4024.4,0.9814]
[1758948126515,0.93721664,4024.5,4024.4,0.9814]
[1758948128110,1.24491664,4024.5,4024.4,0.9814]
[1758948130116,1.24491664,4024.5,4024.4,0.5724]
[1758948130415,1.17099,4024.1,4024.0,0.65637243]
[1758948130616,1.69125642,4024.1,4024.0,0.90637243]
[1758948131719,1.38355642,4024.1,4024.0,1.12217243]
[1758948132417,1.72295642,4024.1,4024.0,1.12217243]
[1758948134018,1.38355642,4024.1,4024.0,1.12217243]
[1758948134516,1.72295642,4024.1,4024.0,1.12217243]
[1758948137320,1.38355642,4024.1,4024.0,1.56917243]
[1758948139721,0.93656642,4024.1,4024.0,1.56917243]
[1758948142322,0.52026642,4024.1,4024.0,1.56917243]
[1758948142627,0.73255794,4024.4,4024.3,1.21177]
[1758948142825,0.94925794,4024.4,4024.3,1.46177]
[1758948143327,1.28865794,4024.4,4024.3,1.46177]
[1758948144027,0.94925794,4024.4,4024.3,1.46177]
[1758948144829,1.28865794,4024.4,4024.3,1.46177]
[1758948145728,1.28865794,4024.4,4024.3,1.0148]
[1758948145927,1.28865794,4024.4,4024.3,0.5845]
[1758948145928,1.28790955,4024.4,4024.3,0.5845]
[1758948148036,1.28790955,4024.4,4024.3,1.03147]
[1758948148432,1.28790955,4024.4,4024.3,1.25567]
[1758948150433,1.28790955,4024.4,4024.3,0.8087]
[1758948150742,1.73486955,4024.4,4024.3,0.8087]
[1758948153344,1.28790955,4024.4,4024.3,1.25567]
[1758948155144,1.28790955,4024.4,4024.3,0.8087]
[1758948155335,1.28790955,4024.4,4024.3,1.25567]
[1758948158743,1.28790955,4024.4,4024.3,0.8087]
[1758948159640,1.28790955,4024.4,4024.3,1.25567]
[1758948161143,1.28790955,4024.4,4024.3,1.46177]
[1758948161446,0.94850955,4024.4,4024.3,1.46177]
[1758948162547,1.26250955,4024.4,4024.3,1.46177]
[1758948166048,1.26250955,4024.4,4024.3,1.0148]
[1758948166646,1.26250955,4024.4,4024.3,1.46177]
[1758948169850,0.94850955,4024.4,4024.3,1.46177]
[1758948170149,0.94850955,4024.4,4024.3,1.0148]
[1758948170354,4.47030955,4024.4,4024.3,0.5587]
[1758948170650,5.87033092,4024.4,4024.3,0.5587]
[1758948174748,5.59411658,4024.4,4024.3,0.5587]
[1758948174953,0.5246,4024.2,4024.1,0.3351]
[1758948175149,1.69638955,4024.2,4024.1,0.5591]
[1758948175455,1.69638955,4024.2,4024.1,0.7857]
[1758948175752,1.24940955,4024.2,4024.1,0.7857]
[1758948175945,0.72480955,4024.2,4024.1,0.7857]
[1758948176347,0.51960955,4024.2,4024.1,0.7857]
[1758948176548,4.53680703,4024.4,4024.3,0.4506]
[1758948176743,5.2698565,4024.4,4024.3,0.4506]
[1758948177047,5.5838565,4024.4,4024.3,0.7857]
[1758948177246,5.7168165,4024.4,4024.3,0.7857]
[1758948177446,5.5062165,4024.4,4024.3,0.7857]
[1758948178452,5.7168165,4024.4,4024.3,0.7857]